bitfinex/quotes_ETHUSD_20260202
["timestamp","ask_amount","ask_price","bid_price","bid_amount"]
[1769990532043,1.11973819,2259.8,2258.1,1.10709558]
[1769990532363,0.1024,2259.7,2258.1,1.10709558]
[1769990532566,1.11973819,2259.8,2258.1,2.03511985]
[1769990532567,1.10631177,2259.8,2258.1,2.03511985]
[1769990532739,1.10619469,2260.0,2258.6,0.01342642]
[1769990532938,0.56333735,2259.9,2258.9,0.01342642]
[1769990533174,0.56333735,2259.9,2258.8,0.01342642]
[1769990533338,1.1061756,2260.1,2258.7,0.01342642]
[1769990533656,0.1024,2260.2,2258.9,1.10673336]
[1769990533857,0.1024,2260.2,2258.9,1.12015978]
[1769990534062,0.1024,2260.2,2259.0,0.01342642]
[1769990534267,0.01342642,2261.4,2259.5,13.87739091]
[1769990534585,1.10549215,2261.5,2259.8,0.01342642]
[1769990534770,1.10549215,2261.5,2260.3,0.01342642]
[1769990535077,1.10549215,2261.5,2260.7,0.01342642]
[1769990535296,1.10536322,2261.7,2260.4,0.01342642]
[1769990535497,0.0011,2261.8,2260.4,0.01342642]
[1769990535498,0.0011,2261.8,2260.6,1.1193275]
[1769990535702,0.0011,2261.8,2260.7,0.56906225]
[1769990535871,1.10497237,2262.5,2260.7,0.56906225]
[1769990535872,1.10482587,2262.8,2261.0,0.01342642]
[1769990536402,1.11825229,2262.8,2261.0,0.01342642]
[1769990536609,0.01342642,2262.5,2260.8,0.928]
[1769990536774,1.10482587,2262.8,2260.8,0.928]
[1769990536977,0.01342642,2262.5,2260.8,0.928]
[1769990537180,0.1024,2262.6,2260.8,0.928]
[1769990537380,1.15097328,2262.5,2260.8,0.928]
[1769990537719,1.10492353,2262.6,2260.9,1.10575434]
[1769990537922,0.92747991,2262.5,2260.9,1.10575434]
[1769990538124,0.82949472,2262.5,2261.0,0.65910359]
[1769990538406,0.0011,2262.5,2261.1,0.01342642]
[1769990538566,0.0011,2262.5,2261.2,0.928]
[1769990538968,1.15207328,2262.5,2261.2,0.928]
[1769990539195,0.94300841,2262.5,2261.2,0.928]
[1769990539493,0.0011,2262.5,2261.4,1.10550986]
[1769990539699,0.0011,2262.5,2261.5,0.01342642]
[1769990539878,1.15097328,2263.5,2261.7,0.01342642]
[1769990540078,0.92827514,2263.4,2261.8,0.01342642]
[1769990540279,5.5689101,2263.6,2261.9,0.01342642]
[1769990540280,1.10445997,2263.6,2261.9,0.01342642]
[1769990540482,1.15456741,2263.5,2262.0,0.01342642]
[1769990540677,0.22554333,2263.5,2262.0,0.01342642]
[1769990540881,1.15097328,2264.3,2262.6,13.89081733]
[1769990541100,1.15097328,2264.9,2263.4,0.01342642]
[1769990541395,1.15097328,2264.9,2263.1,13.89081733]
[1769990541396,0.92788743,2264.8,2263.1,13.87739091]
[1769990541567,1.10375275,2265.0,2263.2,1.10463061]
[1769990541769,0.92786764,2264.9,2263.2,1.10463061]
[1769990541972,2.09226734,2264.8,2263.2,1.10463061]
[1769990542166,0.01342642,2264.9,2263.2,1.10463061]
[1769990542167,0.92786764,2264.7,2263.2,1.10463061]
[1769990542373,0.92786764,2264.6,2263.2,1.10463061]
[1769990542574,0.1024,2264.4,2262.9,0.927]
[1769990542772,0.1024,2264.2,2262.9,0.927]
[1769990543003,0.1024,2264.0,2262.9,0.927]
[1769990543191,1.40163577,2264.2,2263.1,1.10467734]
[1769990543577,1.40163577,2264.2,2263.0,4.41871768]
[1769990543775,1.10407989,2264.4,2262.9,4.4321441]
[1769990544082,1.10407989,2264.4,2262.8,4.43267863]
[1769990544083,0.1024,2264.3,2262.8,1.10479103]
[1769990544900,12.87203115,2264.8,2263.0,0.01342642]
[1769990545083,1.10389897,2264.7,2263.0,0.01342642]
[1769990545287,0.01342642,2265.1,2263.0,0.01342642]
[1769990545288,0.55194948,2264.6,2263.4,0.01342642]
[1769990545496,1.10355787,2265.4,2263.7,0.01342642]
[1769990545801,0.0011,2265.5,2263.9,1.10428905]
[1769990546002,0.0011,2265.5,2263.8,5.35758265]
[1769990546003,0.01452642,2265.5,2263.8,2.03130147]
[1769990546198,0.01452642,2265.5,2264.1,0.01342642]
[1769990546199,0.0011,2265.5,2264.1,0.01342642]
[1769990546401,0.0011,2265.5,2263.8,2.03130147]
[1769990546903,0.01452642,2265.5,2263.8,2.03130147]
[1769990547072,0.01342642,2265.4,2263.8,2.03130147]
[1769990547274,0.0011,2265.5,2263.8,2.68959317]
[1769990547598,0.0011,2265.5,2264.0,1.10424028]
[1769990547799,0.0011,2265.5,2264.2,0.01342642]
[1769990548174,0.0011,2265.5,2264.0,1.10424028]
[1769990548370,0.0011,2265.5,2264.0,1.1176667]
[1769990548586,0.0011,2265.5,2264.1,0.01342642]
[1769990548771,0.0011,2265.5,2264.3,0.01342642]
[1769990549193,0.0011,2265.5,2264.6,0.01342642]
[1769990549378,0.0011,2265.5,2264.7,0.01342642]
[1769990549580,0.0011,2265.7,2265.0,0.01342642]
[1769990549783,1.10297361,2266.6,2265.2,1.1036553]
[1769990549984,1.83878706,2266.5,2265.1,0.927]
[1769990550326,0.11582642,2266.1,2264.0,1.15503071]
[1769990550489,0.0011,2265.2,2264.3,0.927]
[1769990550694,0.0011,2265.2,2264.5,1.10396904]
[1769990550994,0.0011,2265.2,2264.9,1.10379806]
[1769990551219,0.0011,2265.2,2264.4,1.10402948]
[1769990551393,0.0011,2265.2,2264.3,5.3433054]
[1769990551394,0.0011,2265.2,2264.7,1.10389639]
[1769990551587,0.0011,2265.4,2264.9,1.10379621]
[1769990551791,0.0011,2265.4,2264.5,1.11742288]
[1769990552025,1.10321698,2266.1,2264.5,1.11742288]
[1769990552026,1.10314565,2266.3,2264.9,0.01342642]
[1769990552224,1.10314565,2266.3,2265.0,0.01342642]
[1769990552521,0.11582642,2266.2,2264.5,1.10399646]
[1769990552889,0.1024,2266.2,2264.5,1.10399646]
[1769990553290,13.98860322,2266.3,2264.5,1.10399646]
[1769990553495,13.98860322,2266.3,2264.5,1.11742288]
[1769990553496,1.84154656,2266.2,2264.5,1.11742288]
[1769990553821,1.10321698,2266.1,2264.6,0.01342642]
[1769990554044,2.94473999,2266.2,2264.8,0.01342642]
[1769990554197,0.0011,2266.4,2265.2,0.01342642]
[1769990554395,0.0011,2266.4,2265.3,0.01342642]
[1769990554643,0.0011,2266.4,2265.4,0.926]
[1769990554789,0.0011,2266.7,2265.6,0.01342642]
[1769990554994,0.0011,2266.7,2266.0,0.01342642]
[1769990555193,12.98481917,2267.7,2266.0,0.01342642]
[1769990555194,1.10240245,2267.8,2266.2,0.01342642]
[1769990555410,1.10240245,2267.8,2266.1,0.01342642]
[1769990555411,1.83839935,2267.7,2266.1,0.01342642]
[1769990555612,1.83839935,2267.7,2264.8,0.01342642]
[1769990555613,12.87203115,2267.4,2265.3,13.01286494]
[1769990555809,1.10253583,2267.5,2265.9,1.10331435]
[1769990556238,1.10253583,2267.5,2266.0,0.01342642]
[1769990556635,1.10251761,2267.6,2266.2,0.01342642]
[1769990556840,1.83839935,2267.7,2266.7,0.01342642]
[1769990557112,1.10185552,2268.9,2267.3,0.01342642]
[1769990557317,0.0011,2269.4,2267.7,0.01342642]
[1769990557515,1.10272813,2269.4,2267.9,0.01342642]
[1769990557847,1.10272813,2269.4,2267.6,0.01342642]
[1769990557848,3.44897242,2269.3,2268.0,0.926]
[1769990558030,1.74237317,2269.2,2268.0,0.926]
[1769990558236,0.1024,2268.9,2268.0,0.926]
[1769990558617,0.11582642,2268.9,2268.0,0.926]
[1769990559044,0.11582642,2268.9,2266.4,4.41227996]
[1769990559045,0.01342642,2268.3,2266.4,4.41227996]
[1769990559229,0.01342642,2267.8,2266.2,1.1031461]
[1769990559547,0.01342642,2267.8,2266.2,1.10316236]
[1769990559764,0.01342642,2267.6,2266.1,0.926]
[1769990560047,1.10253583,2267.5,2266.1,0.926]
[1769990560354,0.01342642,2267.3,2265.5,0.926]
[1769990560650,0.66390791,2267.4,2266.1,1.10317807]
[1769990560850,0.56150791,2267.4,2266.1,1.10317807]
[1769990561019,0.56150791,2267.4,2265.6,0.01342642]
[1769990561020,0.1024,2267.3,2265.5,0.926]
[1769990561217,0.1024,2267.1,2265.7,1.10339642]
[1769990561411,0.1024,2267.1,2265.7,4.41357912]
[1769990561650,0.1024,2267.1,2265.5,0.926]
[1769990561853,1.102779,2267.0,2265.6,1.10346045]
[1769990562146,4.51348249,2267.1,2265.6,1.11688687]
[1769990562147,0.56162615,2266.9,2265.6,1.11688687]
[1769990562361,1.10273833,2267.1,2265.6,1.10346045]
[1769990562648,1.20512332,2267.2,2265.6,1.10346045]
[1769990563170,0.92726614,2267.1,2265.6,1.10346045]
[1769990563457,0.92726614,2267.0,2265.6,1.10346045]
[1769990563662,0.92726614,2267.0,2265.5,5.3398418]
[1769990563663,1.14864371,2267.0,2265.5,2.04291834]
[1769990563826,0.92726614,2266.9,2265.5,2.02949192]
[1769990564031,0.1024,2266.4,2264.6,4.41574633]
[1769990564357,1.25104371,2265.7,2264.0,0.01342642]
[1769990564555,1.14864371,2265.6,2264.5,1.10399635]
[1769990564728,1.14864371,2265.6,2264.1,1.10419104]
[1769990564729,1.25104371,2265.3,2264.1,1.10419104]
[1769990565064,0.92726614,2265.2,2264.1,1.10417923]
[1769990565267,0.92726614,2265.1,2264.1,1.10417923]
[1769990565432,0.92726614,2265.0,2264.1,1.10418873]
[1769990565759,0.92726614,2265.0,2263.5,0.93842642]
[1769990565760,13.81329682,2264.9,2262.7,0.001]
[1769990565961,1.14864371,2264.1,2262.8,4.4192426]
[1769990566126,0.93120403,2264.1,2262.9,0.01342642]
[1769990566327,0.93120403,2264.0,2262.8,0.01342642]
[1769990566522,0.9314954,2263.9,2262.7,1.1058747]
[1769990566729,1.14864371,2263.7,2262.7,0.001]
[1769990566929,0.9314954,2263.6,2262.7,0.55366134]
[1769990567235,1.14864371,2263.8,2262.7,0.001]
[1769990567438,0.9325373,2263.7,2262.7,0.001]
[1769990567638,1.20642967,2264.5,2262.7,0.001]
[1769990567639,0.9325373,2263.6,2262.7,0.001]
[1769990567951,1.10438662,2263.7,2262.7,0.001]
[1769990568151,0.93293674,2263.6,2262.7,0.001]
[1769990568351,0.93293674,2263.5,2262.7,0.001]
[1769990568540,0.93388743,2263.4,2262.7,0.001]
[1769990568859,1.14864371,2263.7,2262.7,0.001]
[1769990569074,2.08312071,2263.6,2262.7,0.001]
[1769990569367,2.08312071,2263.5,2262.7,0.001]
[1769990569547,0.3784191,2263.7,2262.7,0.001]
[1769990569548,0.934477,2263.4,2262.7,0.001]
[1769990569752,1.14864371,2263.7,2262.7,0.001]
[1769990570671,1.14864371,2263.6,2262.7,0.001]
[1769990570855,1.14864371,2263.3,2262.7,0.001]
[1769990571043,1.14864371,2263.2,2262.7,0.001]
[1769990571243,1.14864371,2263.3,2262.7,0.001]
[1769990571460,1.14864371,2263.0,2262.5,0.001]
[1769990571632,1.14864371,2262.8,2261.9,0.925]
[1769990572063,1.53120361,2263.4,2262.3,0.01342642]
[1769990572258,1.53120361,2263.7,2262.3,0.45949689]
[1769990572459,1.53120361,2263.8,2262.3,0.45949689]
[1769990572770,2.63551089,2263.9,2262.5,0.01342642]
[1769990572961,1.53120361,2263.8,2262.1,0.01342642]
[1769990573158,1.53120361,2263.6,2262.0,14.50380999]
[1769990573372,1.53120361,2264.1,2262.7,0.01342642]
[1769990573562,2.63530985,2264.3,2262.9,0.01342642]
[1769990573759,2.63530985,2264.3,2263.0,0.926]
[1769990574062,2.64891908,2263.9,2263.0,0.926]
[1769990574239,1.53120361,2263.8,2263.0,0.926]
[1769990574581,1.10425076,2264.0,2263.0,0.926]
[1769990574749,3.57452989,2264.0,2263.0,0.926]
[1769990575065,1.10426236,2264.0,2262.2,4.43385688]
[1769990575240,1.53120361,2263.9,2262.7,1.1048478]
[1769990575434,1.53120361,2263.9,2262.3,5.34611006]
[1769990575435,1.53120361,2263.8,2262.5,1.10494153]
[1769990575668,1.53120361,2263.8,2262.6,4.41965396]
[1769990575964,1.53120361,2263.8,2262.7,1.10486554]
[1769990576139,1.53120361,2263.8,2262.4,1.10502121]
[1769990576341,2.63554565,2263.8,2262.5,0.47349671]
[1769990576643,0.0011,2263.7,2262.5,0.47349671]
[1769990577874,0.0011,2263.7,2262.5,0.48692313]
[1769990578080,23.581555,2263.6,2261.2,0.01342642]
[1769990578256,23.581555,2263.6,2261.1,0.001]
[1769990578257,13.84449049,2262.6,2261.1,0.001]
[1769990578570,13.84449049,2262.6,2260.5,0.01342642]
[1769990578571,0.01342642,2261.5,2259.7,0.01342642]
[1769990578771,0.01342642,2261.2,2259.7,1.43514462]
[1769990579074,0.01342642,2260.8,2260.2,1.10609223]
[1769990579263,0.01342642,2261.1,2260.5,1.10593913]
[1769990579567,0.01342642,2261.1,2259.7,1.10631108]
[1769990579773,0.01342642,2260.7,2259.7,1.10632228]
[1769990579972,0.01342642,2260.6,2259.8,1.10628524]
[1769990580140,0.01342642,2260.6,2259.7,4.42536315]
[1769990580141,0.01342642,2260.5,2259.7,4.42536315]
[1769990580352,1.1057657,2260.9,2259.8,1.10626923]
[1769990580685,2.66422221,2261.6,2259.8,1.10626923]
[1769990580892,0.01342642,2261.5,2259.8,14.5048626]
[1769990581383,1.10530354,2261.9,2259.9,13.41201979]
[1769990581584,1.11852507,2262.3,2260.3,13.41201979]
[1769990581786,1.10507867,2262.3,2260.5,13.41201979]
[1769990581985,1.10505604,2262.4,2260.6,14.33801979]
[1769990582206,0.01342642,2262.6,2260.6,14.33801979]
[1769990582207,0.01342642,2262.7,2260.7,14.51787195]
[1769990582362,0.01342642,2262.7,2260.9,13.39859337]
[1769990582696,1.10476373,2263.0,2261.1,13.41201979]
[1769990582865,0.01342642,2262.8,2261.1,13.39859337]
[1769990583064,0.01342642,2262.9,2261.1,13.39859337]
[1769990583292,0.01342642,2262.1,2260.7,1.10585216]
[1769990583504,0.01342642,2262.2,2260.7,1.10585216]
[1769990583801,0.01342642,2262.6,2260.7,1.10585216]
[1769990583802,2.6635465,2263.0,2260.8,14.05754587]
[1769990584004,0.01342642,2262.9,2261.0,0.01342642]
[1769990584285,1.10482587,2262.8,2261.1,14.51767632]
[1769990584453,0.01342642,2262.8,2261.1,14.5042499]
[1769990584886,0.01342642,2262.6,2261.1,14.5042499]
[1769990585090,0.01342642,2262.1,2261.1,1.10565653]
[1769990585489,0.11582642,2262.9,2261.1,1.10565653]
[1769990585689,0.01342642,2262.9,2261.1,1.10565653]
[1769990586089,0.01342642,2262.6,2261.0,4.42262615]
[1769990586500,4.41853821,2263.2,2261.3,13.41201979]
[1769990586667,4.41853821,2263.2,2261.0,4.43605257]
[1769990586668,0.01342642,2262.9,2261.0,4.43605257]
[1769990586868,0.01342642,2262.9,2260.9,1.11913186]
[1769990586872,13.84449049,2262.5,2260.2,0.01342642]
[1769990587069,12.87203115,2261.5,2259.6,13.39859337]
[1769990587269,0.01342642,2261.8,2260.2,4.42431843]
[1769990587579,0.01342642,2261.8,2259.7,17.82389318]
[1769990587580,0.01342642,2261.5,2260.4,4.42397175]
[1769990587775,0.11582642,2261.9,2260.5,0.926]
[1769990587974,0.01342642,2261.5,2260.5,0.926]
[1769990588194,0.94761974,2261.4,2260.5,2.03194319]
[1769990588386,0.94724622,2261.3,2260.5,0.926]
[1769990588586,0.01342642,2260.7,2259.6,1.10636402]
[1769990588787,0.01342642,2260.2,2258.9,1.10673336]
[1769990589101,0.01342642,2260.1,2259.0,1.1081551]
[1769990589308,1.57220919,2260.8,2259.0,1.1081551]
[1769990589487,1.55878277,2261.2,2259.2,13.58721688]
[1769990589795,0.01342642,2261.3,2259.4,13.57379046]
[1769990589982,0.01342642,2261.1,2260.5,0.001]
[1769990590190,0.01342642,2261.3,2260.5,0.001]
[1769990590191,1.1189925,2261.3,2260.5,0.001]
[1769990590424,0.9352515,2261.2,2260.5,0.001]
[1769990590594,0.01342642,2261.0,2260.5,0.001]
[1769990590982,0.01342642,2261.0,2259.5,0.001]
[1769990590983,0.01342642,2260.6,2259.5,0.001]
[1769990591207,0.01342642,2260.6,2259.6,1.10635927]
[1769990591208,0.01342642,2260.3,2259.6,1.10635927]
[1769990591406,0.01342642,2260.3,2259.5,0.001]
[1769990591713,0.01342642,2260.3,2258.9,18.00060551]
[1769990591714,0.01342642,2259.6,2258.3,4.42803663]
[1769990591918,0.01342642,2259.7,2258.8,1.1067522]
[1769990592213,0.93647676,2259.6,2258.4,0.001]
[1769990592403,1.10616093,2260.1,2258.4,0.001]
[1769990592603,0.93685371,2260.0,2258.4,0.001]
[1769990592808,0.93685371,2259.9,2258.4,0.001]
[1769990593030,0.93685371,2259.8,2258.4,0.001]
[1769990593233,0.93685371,2259.7,2258.4,0.001]
[1769990593394,0.93685371,2259.6,2258.4,0.001]
[1769990593582,0.01342642,2259.8,2258.4,0.001]
[1769990593789,0.01342642,2259.5,2258.4,0.001]
[1769990594085,2.51016371,2259.7,2258.4,1.10797839]
[1769990594086,0.93795452,2259.4,2258.4,1.10797839]
[1769990594300,0.93851197,2259.3,2258.4,1.10797839]
[1769990594501,2.32788845,2259.9,2258.4,1.10797839]
[1769990594502,1.55878277,2259.9,2258.4,1.10797839]
[1769990594810,0.93841883,2259.8,2258.4,1.10797839]
[1769990595017,0.93841883,2259.7,2258.4,1.10797839]
[1769990595193,0.93841883,2259.6,2258.4,1.10797839]
[1769990595391,0.01342642,2259.8,2258.5,0.64628919]
[1769990595588,0.93847569,2259.7,2258.5,0.64628919]
[1769990595815,0.93847569,2259.6,2258.5,0.64628919]
[1769990596128,0.01342642,2259.3,2258.4,0.001]
[1769990596308,0.01342642,2258.8,2258.1,0.001]
[1769990596487,0.01342642,2258.2,2258.1,0.001]
[1769990596811,1.57220919,2259.0,2258.1,0.001]
[1769990597026,2.34131487,2259.2,2258.1,0.001]
[1769990597027,0.01342642,2259.1,2258.1,0.55468628]
[1769990597323,0.01342642,2259.4,2258.1,0.55468628]
[1769990597825,0.01342642,2259.1,2258.1,0.55468628]
[1769990598026,0.93738258,2259.0,2258.1,0.001]
[1769990598221,0.01342642,2258.8,2258.1,0.001]
[1769990598399,2.05754236,2258.9,2257.5,1.10741903]
[1769990598400,0.93690934,2258.7,2257.5,1.10741903]
[1769990598720,0.93690934,2258.7,2257.5,1.10741672]
[1769990598721,0.01342642,2258.2,2257.5,1.10741672]
[1769990598897,0.01342642,2257.9,2257.4,1.1074646]
[1769990599099,1.57220919,2258.9,2257.5,1.10741684]
[1769990599318,0.01342642,2258.4,2257.5,1.10741684]
[1769990599616,0.01342642,2258.7,2257.5,1.10741684]
[1769990599792,0.01342642,2258.6,2257.5,1.10741684]
[1769990599988,0.01342642,2258.3,2257.5,1.10741684]
[1769990600189,0.01342642,2258.2,2257.2,0.001]
[1769990600390,0.01342642,2258.1,2257.2,1.10854097]
[1769990600598,0.01342642,2257.8,2257.2,0.001]
[1769990600797,0.01342642,2257.6,2257.2,0.001]
[1769990601026,0.01342642,2257.3,2255.8,4.43301191]
[1769990601331,0.01342642,2256.8,2255.8,0.927]
[1769990601501,15.27456878,2257.7,2256.5,1.10788262]
[1769990601707,0.01342642,2256.9,2256.1,1.10807653]
[1769990601907,0.01342642,2256.9,2255.8,0.927]
[1769990601908,0.01342642,2256.3,2255.8,0.927]
[1769990602111,0.01342642,2256.0,2254.4,13.57379046]
[1769990602302,0.01342642,2256.0,2254.7,0.928]
[1769990602618,0.01342642,2255.9,2254.7,0.928]
[1769990602949,0.01342642,2255.7,2254.7,0.928]
[1769990603149,0.01342642,2255.7,2254.5,4.43553164]
[1769990603150,0.01342642,2255.4,2254.5,4.43553164]
[1769990603348,12.94668033,2255.1,2253.1,4.25237059]
[1769990603660,1.3094371,2255.0,2253.3,13.57379046]
[1769990603868,0.01342642,2254.5,2253.2,4.43804608]
[1769990604180,0.01342642,2254.5,2252.5,1.10987791]
[1769990604181,0.01342642,2253.8,2252.5,1.10987791]
[1769990604449,0.01342642,2253.8,2252.4,1.21846486]
[1769990604615,0.01342642,2253.1,2252.4,0.1085477]
[1769990604814,0.01342642,2252.7,2251.8,4.4407262]
[1769990605054,0.01342642,2253.1,2251.2,13.57379046]
[1769990605055,12.93325391,2253.7,2252.4,1.10992125]
[1769990605221,3.60929929,2254.1,2252.4,1.10992125]
[1769990605222,1.1090901,2254.1,2252.4,2.03792125]
[1769990605544,0.01342642,2253.5,2252.4,0.928]
[1769990605746,0.01342642,2253.4,2251.9,4.44066407]
[1769990605909,0.01342642,2253.4,2251.4,0.928]
[1769990605910,0.01342642,2252.7,2251.4,0.928]
[1769990606110,0.01342642,2252.3,2250.2,0.23119345]
[1769990606310,0.01342642,2251.0,2249.1,0.01342642]
[1769990606544,0.01342642,2251.0,2248.5,0.01342642]
[1769990606545,0.01342642,2250.5,2248.3,4.44771238]
[1769990606843,0.01342642,2250.5,2248.6,0.01342642]
[1769990607043,0.01342642,2250.5,2248.3,4.4611388]
[1769990607044,0.01342642,2250.3,2248.3,4.4611388]
[1769990607243,0.01342642,2250.6,2248.7,0.01342642]
[1769990607539,0.01342642,2251.1,2248.9,0.01342642]
[1769990607743,0.01342642,2251.9,2249.8,0.01342642]
[1769990607906,0.11582642,2252.2,2250.3,0.01342642]
[1769990608110,0.01342642,2252.1,2249.9,0.929]
[1769990608316,0.01342642,2251.1,2248.4,1.91603069]
[1769990608535,12.94668033,2250.9,2248.6,4.46051896]
[1769990608712,2.62245332,2251.1,2249.9,1.1111559]
[1769990608914,0.1024,2251.4,2249.9,1.1111559]
[1769990609119,1.29735332,2252.3,2250.5,0.01342642]
[1769990609439,0.1024,2252.3,2250.6,0.94242642]
[1769990609640,0.1024,2252.4,2250.6,0.94242642]
[1769990609832,0.11582642,2252.4,2250.6,0.879]
[1769990610139,0.01342642,2252.3,2250.6,0.879]
[1769990610465,0.01342642,2252.8,2250.6,0.879]
[1769990610466,14.04297078,2252.9,2250.8,0.01342642]
[1769990610615,12.91502968,2253.4,2251.1,0.01342642]
[1769990610616,1.40429708,2252.8,2251.1,0.01342642]
[1769990610940,4.45158041,2253.2,2250.8,14.22110115]
[1769990611139,4.45158041,2253.2,2251.1,0.01342642]
[1769990611371,4.45158041,2253.2,2250.9,0.929]
[1769990611372,0.01342642,2253.0,2250.9,0.929]
[1769990611643,0.01342642,2252.8,2250.9,0.929]
[1769990611846,0.01342642,2252.8,2251.0,1.26872]
[1769990612142,0.01342642,2252.9,2251.1,0.01342642]
[1769990612342,0.1024,2252.9,2251.2,1.12394525]
[1769990612557,12.9284561,2253.4,2251.2,1.12394525]
[1769990612558,1.10943463,2253.5,2251.6,0.01342642]
[1769990612716,1.10943463,2253.5,2251.3,0.01342642]
[1769990612717,0.01342642,2253.1,2251.3,0.01342642]
[1769990612912,0.01342642,2252.7,2251.4,0.93]
[1769990613118,0.01342642,2252.7,2250.7,4.4430575]
[1769990613119,0.01342642,2252.5,2250.7,4.4430575]
[1769990613418,0.01342642,2253.0,2251.1,1.11056236]
[1769990613616,0.01342642,2253.4,2251.3,0.01342642]
[1769990613862,1.43339667,2254.4,2252.1,0.01342642]
[1769990614071,0.01342642,2255.4,2252.8,13.58721688]
[1769990614229,25.84828359,2255.5,2254.1,0.01342642]
[1769990614230,1.10842592,2255.5,2254.1,0.01342642]
[1769990614427,1.10820515,2255.9,2254.3,0.01342642]
[1769990614623,1.10820515,2255.9,2254.6,0.01342642]
[1769990614826,1.10820515,2255.9,2253.9,13.57379046]
[1769990615026,0.55409816,2255.8,2254.6,0.01342642]
[1769990615225,0.55409816,2255.8,2254.7,0.01342642]
[1769990615423,0.30882407,2256.4,2255.2,0.01342642]
[1769990615731,1.10786138,2256.6,2254.5,13.57379046]
[1769990615935,0.1024,2256.5,2254.8,0.94342642]
[1769990616462,1.10894662,2256.7,2255.0,0.01342642]
[1769990616659,1.10894662,2256.7,2255.4,0.01342642]
[1769990616961,0.55401958,2256.6,2254.6,0.01342642]
[1769990617165,0.55401958,2256.6,2254.9,1.10869661]
[1769990617455,0.55401958,2256.6,2255.4,0.01342642]
[1769990617786,0.0011,2256.9,2256.1,0.01342642]
[1769990618055,0.0011,2257.9,2255.9,0.01342642]
[1769990618056,1.10833506,2257.9,2256.2,0.93]
[1769990618241,0.0011,2257.9,2256.3,1.10800868]
[1769990618442,0.0011,2257.9,2256.3,1.1214351]
[1769990618626,0.0011,2257.9,2256.4,0.01342642]
[1769990618973,0.0011,2257.9,2256.5,0.01342642]
[1769990619258,0.0011,2257.9,2256.3,1.10800868]
[1769990619458,0.0011,2257.9,2256.4,0.01342642]
[1769990619625,0.0011,2257.9,2256.3,1.1214351]
[1769990619827,12.91502968,2256.4,2255.9,0.01342642]
[1769990620126,0.1024,2256.2,2254.2,0.94342642]
[1769990620326,0.1024,2256.2,2254.6,1.12227056]
[1769990620558,0.11582642,2256.7,2254.7,0.01342642]
[1769990620724,0.11582642,2256.7,2254.9,0.01342642]
[1769990621053,0.01342642,2256.4,2254.6,1.12227056]
[1769990621257,0.01342642,2256.4,2254.6,1.10884414]
[1769990621258,0.01342642,2255.9,2254.6,1.10884414]
[1769990621635,0.01342642,2256.1,2254.6,1.10884414]
[1769990621838,0.01342642,2255.9,2254.2,0.93]
[1769990622052,0.01342642,2255.5,2254.5,1.10888164]
[1769990622354,0.01342642,2255.1,2253.8,4.43691028]
[1769990622659,0.01342642,2254.8,2253.7,1.10928695]
[1769990622834,0.01342642,2254.4,2253.6,2.03930623]
[1769990623034,0.01342642,2254.8,2253.6,2.03930623]
[1769990623360,0.01342642,2254.4,2253.6,0.93]
[1769990623565,0.01342642,2254.8,2253.6,0.93]
[1769990623566,0.11582642,2255.0,2253.6,2.03932637]
[1769990623859,0.01342642,2253.7,2250.6,0.01442642]
[1769990624044,0.01342642,2252.4,2251.7,1.11027223]
[1769990624242,0.01342642,2252.4,2251.1,4.4422065]
[1769990624243,0.01342642,2251.9,2250.7,0.93]
[1769990624447,0.01342642,2251.4,2250.8,1.11071618]
[1769990624633,0.01342642,2251.7,2250.8,1.11071618]
[1769990625057,0.01342642,2251.0,2249.8,4.44473154]
[1769990625236,0.01342642,2250.5,2249.3,0.93]
[1769990625440,0.01342642,2250.6,2250.3,1.11095026]
[1769990625758,0.01342642,2250.8,2250.3,1.11094575]
[1769990625967,0.01342642,2250.9,2250.3,1.11092876]
[1769990626176,0.01342642,2251.7,2250.3,1.66640683]
[1769990626331,0.01342642,2251.5,2250.3,1.66640683]
[1769990626527,0.01342642,2251.0,2250.3,0.55547807]
[1769990626731,0.01342642,2250.6,2249.3,0.93]
[1769990626932,0.01342642,2250.5,2249.4,4.44548782]
[1769990627127,0.01342642,2250.6,2250.4,1.11091361]
[1769990627362,0.01342642,2250.9,2249.5,4.44537563]
[1769990627566,0.01342642,2251.6,2250.3,1.11092872]
[1769990627858,0.01342642,2251.6,2250.1,1.11103238]
[1769990627859,0.01342642,2251.0,2250.1,1.11103238]
[1769990628059,0.01342642,2250.6,2250.0,1.1110717]
[1769990628265,0.01342642,2250.9,2250.3,1.11095069]
[1769990628439,0.01342642,2250.9,2250.5,0.001]
[1769990628833,0.01342642,2250.8,2250.5,0.001]
[1769990629165,0.01342642,2250.7,2250.3,0.001]
[1769990629362,0.01342642,2250.7,2249.4,1.11140748]
[1769990629363,0.01342642,2250.4,2249.4,1.11140748]
[1769990629571,0.01342642,2250.4,2247.9,0.1085477]
[1769990629572,0.01342642,2249.2,2247.9,0.1085477]
[1769990629745,0.01342642,2249.3,2248.0,1.11209964]
[1769990629943,0.01342642,2248.7,2248.0,1.11209964]
[1769990630150,0.01342642,2248.9,2248.0,1.11209964]
[1769990630511,0.01342642,2248.7,2248.0,1.11209964]
[1769990630627,0.01342642,2248.6,2247.9,1.22066743]
[1769990630834,0.01342642,2249.0,2247.9,1.22066743]
[1769990631077,0.01342642,2248.7,2247.9,1.22066743]
[1769990631377,0.01342642,2249.9,2247.9,1.78759382]
[1769990631578,0.01342642,2249.9,2247.9,15.63967946]
[1769990631744,0.01342642,2250.1,2248.1,13.86551206]
[1769990631932,0.01342642,2249.9,2248.2,0.931]
[1769990632133,0.01342642,2249.9,2248.2,14.78308564]
[1769990632382,0.01342642,2250.9,2248.6,0.01342642]
[1769990632528,0.01342642,2250.9,2248.8,1.11170401]
[1769990632529,0.01342642,2250.5,2248.8,1.11170401]
[1769990632732,0.01342642,2250.9,2248.9,0.01342642]
[1769990632961,0.01342642,2251.1,2249.0,13.86551206]
[1769990633265,0.01342642,2251.1,2249.2,13.86551206]
[1769990633465,0.01342642,2250.9,2249.3,15.25002072]
[1769990633861,0.01342642,2250.6,2249.3,15.25002072]
[1769990634166,0.01342642,2250.1,2249.3,0.931]
[1769990634339,0.01342642,2250.0,2249.3,0.881]
[1769990634665,0.01342642,2250.0,2248.5,4.44681607]
[1769990634666,0.01342642,2249.1,2248.0,1.11209964]
[1769990634865,0.01342642,2248.5,2248.0,1.11209964]
[1769990635174,0.01342642,2248.2,2248.0,1.11209964]
[1769990635343,0.01342642,2248.2,2246.2,2.22509451]
[1769990635344,0.01342642,2247.4,2246.2,2.22509451]
[1769990635671,0.01342642,2247.4,2246.3,1.11210369]
[1769990635871,0.01342642,2247.1,2246.2,1.11299082]
[1769990636083,0.01342642,2246.8,2246.2,1.11299082]